bitfinex/quotes_BTCUSD_20240718
["timestamp","ask_amount","ask_price","bid_price","bid_amount"]
[1721271816344,2.04483731,64738.0,64737.0,0.000913]
[1721271816559,2.09477714,64738.0,64737.0,0.000913]
[1721271816775,2.28627714,64738.0,64737.0,0.000913]
[1721271817006,2.23627714,64738.0,64737.0,0.000913]
[1721271817239,2.28627714,64738.0,64737.0,0.000913]
[1721271819446,2.23633731,64738.0,64737.0,0.000913]
[1721271819692,2.44247117,64738.0,64737.0,0.000913]
[1721271820616,2.28620183,64738.0,64737.0,0.000913]
[1721271821316,2.59513883,64738.0,64737.0,0.000913]
[1721271822745,2.59510405,64738.0,64737.0,0.000913]
[1721271823214,2.54527431,64738.0,64737.0,0.000913]
[1721271823456,2.59511074,64738.0,64737.0,0.000913]
[1721271825926,2.54527431,64738.0,64737.0,0.000913]
[1721271826144,2.59539871,64738.0,64737.0,0.000913]
[1721271829296,2.59533596,64738.0,64737.0,0.000913]
[1721271831944,2.54533596,64738.0,64737.0,0.000913]
[1721271832210,1.85244939,64738.0,64737.0,0.000913]
[1721271832430,1.598292,64738.0,64737.0,0.065913]
[1721271832660,1.6079177,64738.0,64737.0,0.065913]
[1721271832899,2.10791666,64738.0,64737.0,0.065913]
[1721271834323,2.13091666,64738.0,64737.0,0.065913]
[1721271835684,2.08155074,64738.0,64737.0,0.065913]
[1721271835895,2.24762367,64738.0,64737.0,0.065913]
[1721271836344,2.13096752,64738.0,64737.0,0.065913]
[1721271836548,2.22337936,64738.0,64737.0,0.065913]
[1721271838083,2.18358812,64738.0,64737.0,0.065913]
[1721271838349,2.22336078,64738.0,64737.0,0.065913]
[1721271838787,2.22334469,64738.0,64737.0,0.065913]
[1721271839221,2.18358818,64738.0,64737.0,0.065913]
[1721271839431,2.2233435,64738.0,64737.0,0.065913]
[1721271839661,2.22328426,64738.0,64737.0,0.065913]
[1721271841570,2.65812126,64738.0,64737.0,0.000913]
[1721271841784,2.6580151,64738.0,64737.0,0.000913]
[1721271841988,2.5821151,64738.0,64737.0,0.000913]
[1721271843516,2.9724521,64738.0,64737.0,0.000913]
[1721271843737,2.6135151,64738.0,64737.0,0.000913]
[1721271843958,2.5254151,64738.0,64737.0,0.000913]
[1721271844178,2.6635151,64738.0,64737.0,0.000913]
[1721271844389,2.61429958,64738.0,64737.0,0.000913]
[1721271844609,2.66199309,64738.0,64737.0,0.000913]
[1721271844821,2.56958125,64738.0,64737.0,0.000913]
[1721271847225,2.35016463,64738.0,64737.0,0.067313]
[1721271847443,2.43826463,64738.0,64737.0,0.067313]
[1721271847869,2.43878383,64738.0,64737.0,0.067313]
[1721271848093,2.5931334,64738.0,64737.0,0.067313]
[1721271848499,2.5931334,64738.0,64737.0,0.000913]
[1721271848704,2.43878383,64738.0,64737.0,0.000913]
[1721271850012,1.85068383,64738.0,64737.0,0.000913]
[1721271850218,1.90011355,64738.0,64737.0,0.140113]
[1721271850422,2.05658657,64738.0,64737.0,0.140113]
[1721271850844,2.39048774,64738.0,64737.0,0.140113]
[1721271851055,2.55658198,64738.0,64737.0,0.140113]
[1721271851463,2.55658008,64738.0,64737.0,0.140113]
[1721271852226,2.05658008,64738.0,64737.0,0.140113]
[1721271852436,2.55658008,64738.0,64737.0,0.140113]
[1721271852647,2.05658008,64738.0,64737.0,0.140113]
[1721271854029,1.89048774,64738.0,64737.0,0.140113]
[1721271854469,2.05657724,64738.0,64737.0,0.140113]
[1721271855604,1.90011309,64738.0,64737.0,0.140113]
[1721271855843,2.05657724,64738.0,64737.0,0.140113]
[1721271856077,2.40011309,64738.0,64737.0,0.140113]
[1721271856726,2.39983505,64738.0,64737.0,0.140113]
[1721271856939,1.89983505,64738.0,64737.0,0.140113]
[1721271857393,2.05629918,64738.0,64737.0,0.140113]
[1721271857834,1.89983503,64738.0,64737.0,0.140113]
[1721271858040,1.93952468,64738.0,64737.0,0.140113]
[1721271858248,1.89983503,64738.0,64737.0,0.140113]
[1721271861136,1.89983482,64738.0,64737.0,0.140113]
[1721271863954,1.10107083,64738.0,64737.0,0.140113]
[1721271864192,0.97807083,64738.0,64737.0,0.140113]
[1721271864417,0.042,64738.0,64737.0,1.000568]
[1721271864655,0.09266074,64748.0,64746.0,0.308899]
[1721271864878,0.154442,64749.0,64748.0,0.1366]
[1721271865117,0.463327,64749.0,64748.0,0.1366]
[1721271865339,0.860312,64749.0,64748.0,0.1366]
[1721271866010,1.33320104,64749.0,64748.0,0.1366]
[1721271866252,1.44903724,64749.0,64748.0,0.1366]
[1721271866473,1.33320104,64749.0,64748.0,0.1366]
[1721271866696,1.43911674,64749.0,64748.0,0.1366]
[1721271866932,0.99599572,64749.0,64748.0,0.1366]
[1721271867151,1.00299572,64749.0,64748.0,0.1366]
[1721271867379,0.93359374,64749.0,64748.0,0.1366]
[1721271867609,0.31582374,64749.0,64748.0,0.1376]
[1721271867842,0.30882374,64749.0,64748.0,0.1376]
[1721271868053,0.154442,64749.0,64748.0,0.1376]
[1721271868273,0.154442,64749.0,64739.0,0.308932]
[1721271868274,0.154439,64751.0,64749.0,0.141]
[1721271868480,0.06940198,64753.0,64749.0,0.141]
[1721271868481,0.15444,64750.0,64749.0,0.141]
[1721271869340,0.15444,64750.0,64749.0,0.142]
[1721271870219,0.92658174,64750.0,64749.0,0.142]
[1721271870441,1.34656174,64750.0,64749.0,0.142]
[1721271870677,1.34656174,64750.0,64749.0,0.141]
[1721271871535,1.34656174,64750.0,64749.0,0.0645]
[1721271871751,1.34656174,64750.0,64745.0,0.1465]
[1721271871752,0.772247,64746.0,64745.0,0.1465]
[1721271871991,1.01472874,64746.0,64745.0,0.1465]
[1721271873122,0.92662874,64746.0,64745.0,0.1465]
[1721271873354,0.154443,64749.0,64746.0,0.1377]
[1721271873581,0.154429,64755.0,64747.0,0.07717479]
[1721271873805,0.154429,64755.0,64752.0,0.0648]
[1721271873806,0.0022692,64754.0,64752.0,0.0648]
[1721271874043,0.154429,64755.0,64754.0,0.0648]
[1721271874271,0.154429,64755.0,64754.0,0.1418]
[1721271874475,0.15740007,64765.0,64748.0,0.0881]
[1721271874697,0.0924001,64767.0,64748.0,0.0881]
[1721271874698,0.04615639,64771.0,64760.0,0.37189079]
[1721271874914,0.308797,64768.0,64760.0,0.21747479]
[1721271875140,0.154408,64764.0,64760.0,0.21747479]
[1721271875795,0.308797,64768.0,64760.0,0.21747479]
[1721271876018,0.0022692,64767.0,64766.0,0.237302]
[1721271876243,0.154386,64773.0,64769.0,0.0829]
[1721271876509,0.154386,64773.0,64770.0,0.0655]
[1721271876747,0.1566572,64772.0,64770.0,0.0655]
[1721271876959,0.15439,64771.0,64770.0,0.0655]
[1721271877640,0.92633174,64771.0,64770.0,0.0655]
[1721271878966,0.92933174,64771.0,64770.0,0.0655]
[1721271879832,0.308792,64769.0,64765.0,0.0611]
[1721271880054,0.154402,64766.0,64765.0,0.0611]
[1721271880840,0.463206,64766.0,64765.0,0.0611]
[1721271881471,0.463206,64766.0,64765.0,0.0641]
[1721271882278,0.463206,64766.0,64765.0,0.0681]
[1721271883187,0.154402,64766.0,64765.0,0.0651]
[1721271883853,0.00083,64773.0,64766.0,0.2947]
[1721271884089,0.15521174,64773.0,64766.0,0.2947]
[1721271884308,0.15521174,64773.0,64768.0,0.0611]
[1721271884309,0.4654332,64772.0,64768.0,0.0611]
[1721271884534,0.15439,64771.0,64770.0,0.0632]
[1721271886134,0.46317,64771.0,64770.0,0.0632]
[1721271890220,0.15439,64771.0,64770.0,0.0632]
[1721271892466,0.46317,64771.0,64770.0,0.0632]
[1721271893776,0.463176,64770.0,64769.0,0.0792]
[1721271893998,0.463176,64770.0,64764.0,0.0641]
[1721271893999,0.154398,64768.0,64764.0,0.0641]
[1721271895084,0.1544,64767.0,64764.0,0.0641]
[1721271895715,0.1544,64767.0,64764.0,0.0681]
[1721271895720,0.154396,64769.0,64764.0,0.0681]
[1721271896173,0.46398374,64773.0,64764.0,0.0681]
[1721271896174,0.154397,64768.0,64764.0,0.0681]
[1721271896626,0.308785,64770.0,64764.0,0.0681]
[1721271896627,0.463179,64770.0,64764.0,0.225506]
[1721271896865,0.154389,64772.0,64766.0,0.154401]
[1721271897094,0.00083,64773.0,64771.0,0.07717479]
[1721271897327,0.00083,64773.0,64772.0,0.1436]
[1721271898475,0.00083,64773.0,64772.0,0.297987]
[1721271899663,0.00383,64773.0,64772.0,0.297987]
[1721271899888,0.00383,64773.0,64772.0,0.694762]
[1721271900372,0.00383,64773.0,64772.0,0.606762]
[1721271900595,0.00083,64773.0,64772.0,0.606762]
[1721271901730,0.00083,64773.0,64772.0,0.615762]
[1721271902201,0.00083,64773.0,64772.0,0.606762]
[1721271902430,0.00083,64773.0,64772.0,0.616762]
[1721271902920,0.00083,64773.0,64772.0,1.06176048]
[1721271902921,0.00183,64773.0,64772.0,1.06176048]
[1721271903361,0.00083,64773.0,64772.0,1.05376048]
[1721271903795,0.00083,64773.0,64772.0,1.06276048]
[1721271903796,0.00183,64773.0,64772.0,1.06276048]
[1721271904016,0.00183,64773.0,64772.0,1.05276048]
[1721271904238,0.00083,64773.0,64772.0,1.04376048]
[1721271904465,0.00083,64773.0,64772.0,1.36453548]
[1721271904681,0.00183,64773.0,64772.0,1.06676048]
[1721271905350,0.00183,64773.0,64772.0,1.37553548]
[1721271905570,0.00183,64773.0,64772.0,1.36353548]
[1721271906022,0.00083,64773.0,64772.0,1.36653548]
[1721271906477,0.00183,64773.0,64772.0,1.37853548]
[1721271906699,0.00183,64773.0,64772.0,1.58291722]
[1721271906924,0.00083,64773.0,64772.0,1.57091722]
[1721271907177,0.00083,64773.0,64772.0,2.19037354]
[1721271907435,0.00183,64773.0,64772.0,2.04075907]
[1721271907653,0.00083,64796.0,64794.0,0.919375]
[1721271909997,0.00083,64796.0,64794.0,1.228045]
[1721271910437,0.00083,64796.0,64794.0,1.232045]
[1721271911155,0.00083,64796.0,64794.0,1.228045]
[1721271911372,0.00083,64796.0,64794.0,1.240045]
[1721271912263,0.00083,64796.0,64794.0,1.234045]
[1721271912501,0.00083,64796.0,64794.0,1.240045]
[1721271912941,0.00183,64795.0,64794.0,1.247045]
[1721271913369,0.00083,64795.0,64794.0,1.240045]
[1721271913585,0.00083,64795.0,64794.0,1.301045]
[1721271913806,0.00183,64795.0,64794.0,1.37921189]
[1721271914045,0.00183,64795.0,64794.0,1.251045]
[1721271922461,0.00183,64795.0,64794.0,1.45542674]
[1721271922688,0.00183,64795.0,64794.0,2.2121623]
[1721271923447,0.00183,64795.0,64794.0,2.16215207]
[1721271924160,0.00183,64795.0,64794.0,2.21215207]
[1721271925346,0.00183,64795.0,64794.0,2.2469669]
[1721271925615,0.00183,64795.0,64794.0,2.21215207]
[1721271926494,0.00183,64795.0,64794.0,2.21215201]
[1721271926952,0.00183,64795.0,64794.0,2.08399674]
[1721271927174,0.00183,64795.0,64794.0,2.21215201]
[1721271927868,0.00183,64795.0,64794.0,1.63358201]
[1721271928975,0.00183,64795.0,64794.0,1.68358201]
[1721271929199,0.00183,64795.0,64794.0,1.63358201]
[1721271929423,0.00183,64795.0,64794.0,1.47920027]
[1721271929646,0.00183,64795.0,64794.0,1.37920027]
[1721271929895,0.00183,64795.0,64794.0,1.37921304]
[1721271930374,0.00183,64795.0,64794.0,1.53359478]
[1721271931354,0.00183,64795.0,64794.0,1.54193478]
[1721271931599,0.00183,64795.0,64794.0,1.90060478]
[1721271932738,0.00183,64795.0,64794.0,1.57674961]
[1721271932970,0.00183,64795.0,64794.0,1.54193478]
[1721271933187,0.00183,64795.0,64794.0,1.61910957]
[1721271936185,0.00183,64795.0,64794.0,1.61909894]
[1721271936588,0.00183,64795.0,64794.0,1.49094153]
[1721271936809,0.00183,64795.0,64794.0,1.61909894]
[1721271937246,0.00183,64795.0,64794.0,1.82971124]
[1721271937470,0.00183,64795.0,64794.0,1.61909894]
[1721271937696,0.00183,64795.0,64794.0,1.8297121]
[1721271939519,0.00183,64795.0,64794.0,1.82969705]
[1721271940413,0.00183,64795.0,64794.0,1.82969179]
[1721271941855,0.00183,64795.0,64794.0,1.61909875]
[1721271942722,0.00183,64795.0,64794.0,1.47139875]
[1721271944054,0.00183,64795.0,64794.0,0.92283222]
[1721271944290,0.00183,64795.0,64794.0,0.61416222]
[1721271944531,0.06523,64795.0,64794.0,0.15115722]
[1721271944747,0.06523,64795.0,64794.0,0.30549222]
[1721271945901,0.06523,64795.0,64794.0,0.30550969]
[1721271946383,0.06523,64795.0,64794.0,0.30551025]
[1721271946904,0.06523,64795.0,64794.0,0.30551024]
[1721271948482,0.06523,64795.0,64794.0,0.15117524]
[1721271948713,0.00183,64795.0,64794.0,0.69135503]
[1721271948933,0.00183,64795.0,64794.0,1.00002503]
[1721271949192,0.00183,64795.0,64794.0,0.6913545]
[1721271949867,0.00183,64795.0,64794.0,1.0000245]
[1721271951944,0.00183,64795.0,64794.0,1.4520945]
[1721271952169,0.00183,64795.0,64794.0,1.96514624]
[1721271952416,0.00183,64795.0,64794.0,2.32147605]
[1721271952667,0.00183,64795.0,64794.0,2.27572611]
[1721271952891,0.00183,64795.0,64794.0,2.30313429]
[1721271953114,0.00183,64795.0,64794.0,2.25736707]
[1721271953359,0.00183,64795.0,64794.0,2.32148086]
[1721271953829,0.00183,64795.0,64794.0,2.12926003]
[1721271954068,0.00183,64795.0,64794.0,2.27571073]
[1721271954312,0.00183,64795.0,64794.0,2.25736707]
[1721271954544,0.00183,64795.0,64794.0,2.32147902]
[1721271955453,0.00183,64795.0,64794.0,1.93697153]
[1721271955668,0.00183,64795.0,64794.0,2.1108808]
[1721271955894,0.00183,64795.0,64794.0,1.93697153]
[1721271956119,0.00183,64795.0,64794.0,2.06511622]
[1721271957199,0.00183,64795.0,64794.0,2.01511622]
[1721271958086,0.00183,64795.0,64794.0,2.06511622]
[1721271958758,0.00183,64795.0,64794.0,2.01511724]
[1721271959911,0.00183,64795.0,64794.0,2.06511724]
[1721271960131,0.00183,64795.0,64794.0,2.01511724]
[1721271961268,0.00183,64795.0,64794.0,2.01511843]
[1721271961507,0.00183,64795.0,64794.0,2.06511843]
[1721271961701,0.00183,64795.0,64794.0,2.01511843]
[1721271963675,0.00183,64795.0,64794.0,2.06511843]
[1721271964821,0.00183,64795.0,64794.0,1.93697153]
[1721271965058,0.00183,64795.0,64794.0,2.0651133]
[1721271967604,0.00183,64795.0,64794.0,1.93697153]
[1721271967839,0.00183,64795.0,64794.0,2.11084197]
[1721271968076,0.00183,64795.0,64794.0,2.12917477]
[1721271968299,0.00183,64795.0,64794.0,2.11084197]
[1721271968533,0.00183,64795.0,64794.0,2.0651128]
[1721271970820,0.00183,64795.0,64794.0,2.06511165]
[1721271972470,0.00183,64795.0,64794.0,2.15301165]
[1721271974091,0.00183,64795.0,64794.0,2.02487153]
[1721271974338,0.00183,64795.0,64794.0,2.15301216]
[1721271974563,0.00183,64795.0,64794.0,2.02487153]
[1721271974783,0.00183,64795.0,64794.0,2.15301159]
[1721271977448,0.00183,64795.0,64794.0,2.15301238]
[1721271978314,0.00183,64795.0,64794.0,2.17134489]
[1721271978525,0.00183,64795.0,64794.0,2.15301238]
[1721271979218,0.06723,64795.0,64794.0,1.57376759]
[1721271979444,0.06623,64795.0,64794.0,1.56276759]
[1721271979918,0.00083,64795.0,64794.0,1.57676759]
[1721271980162,0.00083,64795.0,64794.0,1.56476759]
[1721271980387,0.00083,64795.0,64794.0,1.43662674]
[1721271980596,0.00083,64795.0,64794.0,1.57878371]
[1721271980828,0.00083,64795.0,64794.0,1.75668371]
[1721271981039,0.00083,64795.0,64794.0,2.06535371]
[1721271981252,0.00083,64795.0,64794.0,2.2759149]
[1721271981470,0.00083,64795.0,64794.0,2.25758916]
[1721271981697,0.00083,64795.0,64794.0,2.57925916]
[1721271981917,0.00083,64795.0,64794.0,2.25658916]
[1721271982146,0.00083,64795.0,64794.0,2.06435371]
[1721271982373,0.00083,64795.0,64794.0,2.19615371]
[1721271982611,0.00083,64795.0,64794.0,2.71536583]
[1721271982850,0.00083,64795.0,64794.0,2.39369583]
[1721271983281,0.00083,64795.0,64794.0,2.21115371]
[1721271983495,0.00083,64795.0,64794.0,2.19714482]
[1721271983718,0.00083,64795.0,64794.0,2.18314482]
[1721271983956,0.00083,64795.0,64794.0,2.08299674]
[1721271984189,0.00083,64795.0,64794.0,2.21114494]
[1721271985065,0.00083,64795.0,64794.0,2.4216817]
[1721271985307,0.00083,64795.0,64794.0,2.40336745]
[1721271985553,1e-06,64796.0,64795.0,0.05]
[1721271985790,0.00834,64803.0,64795.0,0.05]
[1721271985791,0.00834,64803.0,64802.0,0.655048]
[1721271986027,0.00834,64803.0,64802.0,2.06676445]
[1721271986257,0.00834,64803.0,64802.0,2.18317394]
[1721271986492,0.00834,64803.0,64802.0,2.20148083]
[1721271986723,0.00834,64803.0,64802.0,2.10587394]
[1721271986949,0.00834,64803.0,64802.0,2.05507394]
[1721271987182,0.00834,64803.0,64802.0,2.00507394]
[1721271987415,0.00834,64803.0,64802.0,1.78537394]
[1721271987642,0.00834,64803.0,64802.0,1.79937394]
[1721271987860,0.00834,64803.0,64802.0,1.78537394]
[1721271988094,0.00834,64803.0,64802.0,1.79937394]
[1721271988321,0.00834,64803.0,64802.0,1.77137394]
[1721271988553,0.00834,64803.0,64802.0,1.78537394]
[1721271989221,0.07374,64803.0,64802.0,1.37674194]
[1721271989439,0.07374,64803.0,64802.0,1.2223602]
[1721271989861,0.07374,64803.0,64802.0,1.20836231]
[1721271990279,0.07374,64803.0,64802.0,1.23636231]
[1721271990690,0.07374,64803.0,64802.0,1.20836231]
[1721271990925,0.07374,64803.0,64802.0,1.23636276]
[1721271991134,0.07374,64803.0,64802.0,1.22236276]
[1721271991819,0.07374,64803.0,64802.0,1.23636276]
[1721271992956,0.07374,64803.0,64802.0,1.108212]
[1721271993151,0.00834,64803.0,64802.0,1.3907445]
[1721271993396,0.00834,64803.0,64802.0,1.3767445]
[1721271993626,0.00834,64803.0,64802.0,1.39074003]
[1721271993836,0.00834,64803.0,64802.0,1.37674003]
[1721271994032,0.00834,64803.0,64802.0,1.36274003]
[1721271994294,0.00834,64803.0,64802.0,1.39074003]
[1721271995213,0.00834,64803.0,64802.0,2.10827203]
[1721271995421,0.00834,64803.0,64802.0,2.20827203]
[1721271995647,0.00834,64803.0,64802.0,2.22657704]
[1721271995857,0.00834,64803.0,64802.0,2.20827203]
[1721271996290,0.00834,64803.0,64802.0,2.28544682]
[1721271996520,0.00834,64803.0,64802.0,2.59407882]
[1721271996741,0.00834,64803.0,64802.0,2.65803627]
[1721271997303,0.00834,64803.0,64802.0,2.61238383]
[1721271997697,0.00834,64803.0,64802.0,2.63973196]
[1721271998351,0.00834,64803.0,64802.0,2.59407882]
[1721271998718,0.00834,64803.0,64802.0,2.63973196]
[1721271999572,0.00834,64803.0,64802.0,2.59407882]
[1721272001086,0.00834,64803.0,64802.0,2.28544682]
[1721272002876,0.00834,64803.0,64802.0,2.28542818]
[1721272003093,0.00834,64803.0,64802.0,2.59406018]
[1721272003311,0.00834,64803.0,64802.0,3.13617134]
[1721272003552,0.00834,64803.0,64802.0,3.32836162]
[1721272003766,0.00834,64803.0,64802.0,3.32833096]
[1721272004191,0.00834,64803.0,64802.0,3.44239699]
[1721272004396,0.00834,64803.0,64802.0,3.46539699]
[1721272005032,0.00834,64806.0,64802.0,3.46539699]
[1721272005256,0.00834,64806.0,64804.0,1.82209092]
[1721272005471,0.00834,64806.0,64804.0,2.36949687]
[1721272005685,0.00834,64811.0,64810.0,2.089767]
[1721272005896,0.00834,64811.0,64810.0,2.77743085]
[1721272006106,0.00834,64811.0,64810.0,3.03405742]
[1721272006324,0.00834,64811.0,64810.0,3.12516984]
[1721272006540,0.00834,64811.0,64810.0,3.06498742]
[1721272006781,0.00834,64811.0,64810.0,3.15607329]
[1721272006992,0.00834,64811.0,64810.0,3.06498742]
[1721272007197,0.00834,64811.0,64810.0,3.13330396]
[1721272007419,1e-06,64811.0,64810.0,3.48760243]
[1721272007896,1e-06,64811.0,64810.0,3.39651656]
[1721272008107,1e-06,64811.0,64810.0,3.41051656]
[1721272008347,1e-06,64811.0,64810.0,3.42451656]
[1721272008549,1e-06,64811.0,64810.0,3.51553615]
[1721272008777,1e-06,64811.0,64810.0,4.21553615]
[1721272009019,1e-06,64811.0,64810.0,3.65437274]
[1721272009232,1e-06,64811.0,64810.0,4.21551747]
[1721272009455,1e-06,64811.0,64810.0,4.19364968]
[1721272009685,1e-06,64811.0,64810.0,4.12541424]
[1721272009904,1e-06,64811.0,64810.0,4.19362796]
[1721272010111,1e-06,64811.0,64810.0,3.78337609]
[1721272010234,1e-06,64811.0,64810.0,3.8288396]
[1721272010671,1e-06,64811.0,64810.0,3.85158981]
[1721272011312,1e-06,64811.0,64810.0,3.78337609]
[1721272011742,0.00835,64825.0,64824.0,0.204263]
[1721272011743,1e-06,64825.0,64824.0,0.204263]
[1721272011942,1e-06,64825.0,64824.0,1.56817304]
[1721272012142,1e-06,64825.0,64824.0,2.05405274]
[1721272012340,1e-06,64825.0,64824.0,2.79917906]
[1721272012652,1e-06,64825.0,64824.0,2.67110674]
[1721272012873,1e-06,64825.0,64824.0,2.34905371]
[1721272013058,1e-06,64825.0,64824.0,2.36305371]
[1721272014331,1e-06,64825.0,64824.0,2.42905371]
[1721272014549,1e-06,64825.0,64824.0,2.44305371]
[1721272015428,1e-06,64825.0,64824.0,2.31497974]
[1721272015649,1e-06,64825.0,64824.0,2.42905175]
[1721272015872,1e-06,64825.0,64824.0,2.36305175]
[1721272016087,1e-06,64825.0,64824.0,2.37705175]
[1721272016511,1e-06,64825.0,64824.0,2.36305175]
[1721272016727,1e-06,64825.0,64824.0,2.53070175]
[1721272016943,1e-06,64825.0,64824.0,2.38540175]
[1721272017418,1e-06,64825.0,64824.0,2.35740175]
[1721272017634,1e-06,64825.0,64824.0,2.38540175]
[1721272018534,1e-06,64825.0,64824.0,2.37140175]
[1721272018747,1e-06,64825.0,64824.0,2.38540831]
[1721272019815,0.144901,64825.0,64824.0,0.93574557]
[1721272020048,0.144901,64825.0,64824.0,0.799317]
[1721272020288,0.144901,64825.0,64824.0,1.093844]
[1721272020500,1e-06,64825.0,64824.0,1.48192574]
[1721272020938,1e-06,64825.0,64824.0,1.45392574]
[1721272021152,1e-06,64825.0,64824.0,1.23422574]
[1721272021367,1e-06,64825.0,64824.0,1.36222574]
[1721272021637,1e-06,64825.0,64824.0,0.799317]
[1721272021638,0.142601,64825.0,64824.0,0.799317]
[1721272021869,0.142601,64825.0,64824.0,0.785317]
[1721272022292,0.142601,64825.0,64824.0,0.799317]
[1721272024073,0.142601,64825.0,64824.0,0.785317]
[1721272024308,0.142601,64825.0,64824.0,0.771317]
[1721272024771,0.142601,64825.0,64824.0,0.799317]
[1721272029078,0.142601,64825.0,64824.0,1.107844]
[1721272029495,0.142601,64825.0,64824.0,1.26222574]
[1721272030346,1e-06,64825.0,64824.0,1.26222574]
[1721272030775,1e-06,64825.0,64824.0,1.50082527]
[1721272030972,1e-06,64825.0,64824.0,1.73125274]
[1721272031249,1e-06,64825.0,64824.0,1.79884831]
[1721272031496,1e-06,64825.0,64824.0,1.84884831]
[1721272031655,1e-06,64825.0,64824.0,1.84884614]
[1721272031897,1e-06,64825.0,64824.0,1.79884614]
[1721272032829,1e-06,64825.0,64824.0,1.84884614]
[1721272033271,1e-06,64825.0,64824.0,1.86710148]
[1721272033493,1e-06,64825.0,64824.0,1.84884614]
[1721272033983,1e-06,64825.0,64824.0,1.84883893]
[1721272034418,1e-06,64825.0,64824.0,1.96183893]
[1721272034614,1e-06,64825.0,64824.0,1.92583893]
[1721272034829,1e-06,64825.0,64824.0,1.93983893]
[1721272035043,1e-06,64825.0,64824.0,1.92583893]
[1721272035268,1e-06,64825.0,64824.0,2.28436593]
[1721272035739,1e-06,64825.0,64824.0,2.29836593]
[1721272035973,1e-06,64825.0,64824.0,2.27036593]
[1721272036207,1e-06,64825.0,64824.0,2.28436593]
[1721272036883,1e-06,64825.0,64824.0,2.30262861]
[1721272037113,1e-06,64825.0,64824.0,2.28435544]
[1721272037320,1e-06,64825.0,64824.0,2.31662356]
[1721272037533,1e-06,64825.0,64824.0,2.30262356]
[1721272037758,1e-06,64825.0,64824.0,2.31662356]
[1721272040705,1e-06,64825.0,64824.0,2.17027974]
[1721272040937,1e-06,64825.0,64824.0,2.2983563]
[1721272041410,1e-06,64825.0,64824.0,2.15735902]
[1721272042542,1e-06,64825.0,64824.0,1.84883202]
[1721272043011,1e-06,64825.0,64824.0,1.84974502]
[1721272043464,1e-06,64825.0,64824.0,1.72166574]
[1721272043691,1e-06,64825.0,64824.0,2.30737224]
[1721272044127,1e-06,64825.0,64824.0,2.33882704]
[1721272044359,1e-06,64825.0,64824.0,2.33830224]
[1721272044804,1e-06,64825.0,64824.0,2.31082704]
[1721272045010,1e-06,64825.0,64824.0,2.33830224]
[1721272045229,1e-06,64825.0,64824.0,2.32430224]
[1721272045678,1e-06,64825.0,64824.0,2.36977846]
[1721272045900,1e-06,64825.0,64824.0,2.32430224]
[1721272046341,1e-06,64825.0,64824.0,2.34730224]
[1721272046564,1e-06,64825.0,64824.0,2.21922274]
[1721272046814,1e-06,64825.0,64824.0,2.34728778]
[1721272047044,1e-06,64825.0,64824.0,2.60809027]
[1721272047262,1e-06,64825.0,64824.0,2.42999271]
[1721272047497,0.00835,64826.0,64825.0,1.4698038]
[1721272047711,0.00835,64826.0,64825.0,1.92942537]
[1721272047942,0.00835,64826.0,64825.0,1.97490368]
[1721272048183,0.0017424,64842.0,64837.0,0.05]
[1721272048392,0.0017424,64842.0,64841.0,0.990815]
[1721272048612,0.0017424,64842.0,64841.0,1.99015378]
[1721272049753,0.0017424,64842.0,64841.0,1.86208874]
[1721272050003,0.0017424,64842.0,64841.0,1.99015384]
[1721272050486,0.0017424,64842.0,64841.0,1.77045384]
[1721272050918,0.0017424,64842.0,64841.0,1.78445384]
[1721272051583,0.0017424,64842.0,64841.0,1.84621284]
[1721272052444,0.0017424,64842.0,64841.0,1.86021284]
[1721272053104,0.0017424,64842.0,64841.0,1.86021254]
[1721272054209,0.0017424,64842.0,64841.0,1.79845354]
[1721272054699,0.0017424,64842.0,64841.0,2.28025754]
[1721272054924,0.0017424,64842.0,64841.0,2.21865754]
[1721272055162,0.0017424,64842.0,64841.0,2.16865754]
[1721272056001,0.0017424,64842.0,64841.0,2.21865754]
[1721272056459,0.0017424,64842.0,64841.0,2.21864773]
[1721272058736,0.0017424,64842.0,64841.0,2.16864773]
[1721272058956,0.0017424,64842.0,64841.0,2.21864773]
[1721272059402,0.0017424,64842.0,64841.0,2.16864773]
[1721272059612,0.0017424,64842.0,64841.0,2.01259274]
[1721272059826,0.0017424,64842.0,64841.0,2.14064368]
[1721272060013,0.0017424,64842.0,64841.0,2.09059274]
[1721272060225,0.0017424,64842.0,64841.0,2.21864368]
[1721272060440,0.0017424,64842.0,64841.0,2.19064368]
[1721272060660,0.0017424,64842.0,64841.0,2.15464368]
[1721272060879,0.0017424,64842.0,64841.0,2.16864368]
[1721272061360,0.0017424,64842.0,64841.0,2.15464368]
[1721272061547,0.0017424,64842.0,64841.0,2.16864368]
[1721272061969,0.0017424,64842.0,64841.0,2.15464368]
[1721272062222,0.0017424,64842.0,64841.0,2.21864368]
[1721272063754,0.0017424,64842.0,64841.0,2.16864368]
[1721272063977,0.0017424,64842.0,64841.0,2.21864368]
[1721272064536,0.0017424,64842.0,64841.0,2.36134368]
[1721272064976,0.0017424,64842.0,64841.0,2.55342009]
[1721272065176,0.0017424,64842.0,64841.0,2.36134368]
[1721272065379,0.0017424,64842.0,64841.0,2.37960518]
[1721272065979,0.0017424,64842.0,64841.0,2.21929274]
[1721272066192,0.0017424,64842.0,64841.0,2.3655958]
[1721272066405,0.0017424,64842.0,64841.0,2.3795958]
[1721272066614,0.0017424,64842.0,64841.0,2.3655958]
[1721272066819,0.0017424,64842.0,64841.0,2.3515958]
[1721272067256,0.0017424,64842.0,64841.0,2.3655958]
[1721272067474,0.0017424,64842.0,64841.0,2.3795958]
[1721272069197,0.0017424,64842.0,64841.0,2.23329274]
[1721272069451,0.0017424,64842.0,64841.0,2.36133437]
[1721272069723,0.0017424,64842.0,64841.0,2.23329274]
[1721272069934,0.0017424,64842.0,64841.0,2.36133537]
[1721272070161,0.0017424,64842.0,64841.0,2.34733537]
[1721272072114,0.0017424,64842.0,64841.0,2.36558729]
[1721272072536,0.0017424,64842.0,64841.0,2.34733417]
[1721272072960,0.0017424,64842.0,64841.0,3.04733417]
[1721272073193,0.0017424,64842.0,64841.0,3.06133417]
[1721272073869,0.0017424,64842.0,64841.0,3.25339632]
[1721272074100,0.0017424,64842.0,64841.0,3.23939632]